bitfinex-derivatives/quotes_ETHF0:USTF0_20251216
["timestamp","ask_amount","ask_price","bid_price","bid_amount"]
[1765866146036,1.9162,2939.0,2938.8,7.22593242]
[1765866146346,1.9162,2939.0,2938.8,23.05293242]
[1765866146845,1.1739,2939.0,2938.8,23.05293242]
[1765866147047,1.9162,2939.0,2938.8,23.05293242]
[1765866147345,1.9162,2939.0,2938.8,20.56293242]
[1765866147539,1.1739,2939.0,2938.8,22.87293242]
[1765866147848,1.4558,2938.9,2938.8,15.827]
[1765866148644,1.4558,2938.9,2938.8,18.607]
[1765866148941,0.7135,2938.9,2938.8,18.607]
[1765866149444,1.1739,2939.0,2938.8,18.607]
[1765866149647,1.9162,2939.0,2938.8,15.827]
[1765866149948,1.9162,2939.0,2938.8,18.387]
[1765866150448,1.9162,2939.0,2938.8,15.827]
[1765866150845,1.1739,2939.0,2938.8,18.127]
[1765866151042,0.4604,2939.0,2938.9,3.2078]
[1765866151244,0.8451887,2939.5,2938.9,5.5578]
[1765866151443,1.4558,2939.4,2939.3,3.2078]
[1765866151950,0.1316887,2939.5,2938.5,1.38733631]
[1765866151951,1.9162,2939.0,2938.7,3.2078]
[1765866152252,1.9162,2939.0,2938.8,15.826]
[1765866152439,1.9162,2939.0,2938.8,18.176]
[1765866152840,1.1739,2939.0,2938.8,18.176]
[1765866154248,1.8868,2939.0,2938.8,18.176]
[1765866155141,1.8868,2939.0,2938.7,3.2078]
[1765866155346,1.8868,2939.0,2938.8,15.826]
[1765866155547,1.8868,2939.0,2938.8,18.126]
[1765866156851,1.4399,2938.9,2938.8,15.825]
[1765866157356,0.727,2938.9,2938.8,17.35333422]
[1765866157553,0.4604,2939.0,2938.8,17.35333422]
[1765866157849,1.9003,2939.0,2938.8,17.35333422]
[1765866158054,0.727,2938.9,2938.8,17.35333422]
[1765866158750,1.4399,2938.9,2938.8,17.35233422]
[1765866159645,1.4399,2938.9,2938.8,15.824]
[1765866159846,0.4604,2939.0,2938.8,15.824]
[1765866160051,0.4604,2939.0,2938.9,1.52833422]
[1765866160246,1.1874,2939.0,2938.9,1.52833422]
[1765866160552,0.4604,2939.0,2938.9,1.52833422]
[1765866160955,1.1874,2939.0,2938.9,1.52833422]
[1765866161842,1.9003,2939.0,2938.9,1.52833422]
[1765866162553,1.9003,2939.0,2938.9,4.17833422]
[1765866162847,1.1874,2939.0,2938.9,4.17833422]
[1765866163056,0.8586887,2939.5,2938.9,4.17833422]
[1765866163351,0.4627,2939.0,2938.9,2.65]
[1765866163547,0.4627,2939.0,2938.9,46.6578]
[1765866163746,0.4627,2939.0,2938.9,62.4818]
[1765866164348,0.4627,2939.0,2938.9,64.01013422]
[1765866166254,0.4627,2939.0,2938.9,48.18613422]
[1765866166556,1.1897,2939.0,2938.9,63.87813422]
[1765866166855,0.4627,2939.0,2938.9,63.87813422]
[1765866167754,0.1316887,2939.5,2938.9,70.04829422]
[1765866167755,0.46604297,2939.5,2938.9,70.04829422]
[1765866167949,0.46604297,2939.5,2939.4,1.52833422]
[1765866168251,0.46604297,2939.5,2939.4,19.76433422]
[1765866169349,0.46604297,2939.5,2939.4,3.93833422]
[1765866169951,0.46604297,2939.5,2939.4,20.19433422]
[1765866170558,1.19304297,2939.5,2939.4,20.19433422]
[1765866170858,0.46604297,2939.5,2939.4,20.19433422]
[1765866172158,0.00334297,2939.5,2939.4,21.72266844]
[1765866174955,1.9859,2939.6,2939.4,21.72266844]
[1765866175759,1.9859,2939.6,2939.5,40.8]
[1765866175962,1.9859,2939.6,2939.5,43.18]
[1765866176156,1.98902259,2939.6,2939.5,59.004]
[1765866176361,1.98902259,2939.6,2939.5,43.18]
[1765866176552,1.98902259,2939.6,2939.5,59.004]
[1765866177764,1.98902259,2939.6,2939.5,60.53233422]
[1765866179561,3.42892259,2939.6,2939.5,40.8]
[1765866179861,3.42892259,2939.6,2939.5,58.15133422]
[1765866180057,2.70192259,2939.6,2939.5,58.15133422]
[1765866180263,1.98902259,2939.6,2939.5,58.15133422]
[1765866180460,3.42892259,2939.6,2939.5,40.8]
[1765866180768,1.4399,2939.4,2939.3,3.2078]
[1765866180967,1.4399,2939.4,2939.3,19.0318]
[1765866181270,1.9026,2939.5,2939.3,46.8478]
[1765866181456,1.9026,2939.5,2939.4,1.52833422]
[1765866183463,0.4627,2939.5,2939.4,4.30833422]
[1765866184066,0.4627,2939.5,2939.4,45.10833422]
[1765866184771,1.9495,2939.5,2939.4,42.32833422]
[1765866184971,1.9495,2939.5,2939.4,58.15233422]
[1765866185372,1.9495,2939.5,2939.4,42.32833422]
[1765866185573,1.9495,2939.5,2939.4,58.15233422]
[1765866186276,1.2382,2939.5,2939.4,58.15233422]
[1765866186481,1.2382,2939.5,2939.4,58.15133422]
[1765866187379,0.4627,2939.5,2939.4,58.15133422]
[1765866187571,1.9495,2939.5,2939.4,40.8]
[1765866187772,1.9495,2939.5,2939.4,56.623]
[1765866188277,1.2382,2939.5,2939.4,40.8]
[1765866188478,1.2382,2939.5,2939.4,56.622]
[1765866188973,0.4627,2939.5,2939.4,56.622]
[1765866190476,1.2382,2939.5,2939.4,56.622]
[1765866190677,0.4627,2939.5,2939.4,56.622]
[1765866192687,1.2382,2939.5,2939.4,56.622]
[1765866192882,0.4627,2939.5,2939.4,56.619]
[1765866194684,1.4868,2939.1,2939.0,3.2078]
[1765866194881,1.4868,2939.1,2939.0,6.0078]
[1765866195084,0.7755,2939.1,2939.0,19.0268]
[1765866195277,0.7755,2939.1,2939.0,20.55513422]
[1765866195680,1.4868,2939.1,2939.0,20.55513422]
[1765866196082,0.7755,2939.1,2939.0,20.55513422]
[1765866196984,0.7755,2939.1,2939.0,23.26513422]
[1765866197388,0.4627,2939.5,2939.0,23.26513422]
[1765866197581,0.7755,2939.1,2939.0,23.26513422]
[1765866200287,0.7755,2939.1,2939.0,20.55613422]
[1765866200475,0.7755,2939.1,2939.0,23.20613422]
[1765866201081,0.4627,2939.5,2939.0,23.20613422]
[1765866201380,1.4868,2939.3,2939.2,1.52833422]
[1765866201580,1.4868,2939.3,2939.2,2.54]
[1765866202178,1.6515,2939.4,2939.2,4.06833422]
[1765866202382,1.6515,2939.4,2939.2,2.54]
[1765866202583,2.427,2939.4,2939.1,1.52833422]
[1765866202789,2.427,2939.4,2939.1,3.95833422]
[1765866202790,3.1383,2939.4,2939.1,3.95833422]
[1765866203987,3.1383,2939.4,2939.1,1.52833422]
[1765866204495,3.1383,2939.4,2939.1,3.85833422]
[1765866205493,3.1383,2939.4,2939.3,3.2078]
[1765866205790,3.1383,2939.4,2939.3,5.6978]
[1765866205992,2.427,2939.4,2939.3,5.6978]
[1765866206295,1.4868,2938.8,2938.7,3.2078]
[1765866206490,1.4868,2938.8,2938.7,12.5718]
[1765866206689,1.4868,2938.8,2938.7,16.8104204]
[1765866206888,4.8593,2939.4,2938.7,16.8104204]
[1765866207093,5.6348,2939.4,2939.2,1.5286204]
[1765866207292,6.3461,2939.4,2939.2,3.8186204]
[1765866207487,1.4868,2939.3,2939.0,17.3496204]
[1765866207794,0.7755,2939.1,2939.0,19.8196204]
[1765866207996,1.4868,2939.1,2939.0,19.8196204]
[1765866208189,5.6348,2939.4,2939.0,19.8196204]
[1765866208390,5.6348,2939.4,2939.0,17.3496204]
[1765866208695,5.6348,2939.4,2939.0,19.6996204]
[1765866208993,0.7755,2939.1,2939.0,19.6996204]
[1765866209200,1.4868,2939.1,2939.0,17.3496204]
[1765866209401,1.4868,2939.1,2939.0,4.7364204]
[1765866209803,0.7755,2939.1,2939.0,7.5064204]
[1765866210197,1.4868,2939.1,2939.0,3.2078]
[1765866214112,1.932,2939.0,2938.9,3.2078]
[1765866216014,1.932,2939.0,2938.9,4.7364204]
[1765866217309,1.932,2939.0,2938.9,3.2078]
[1765866218612,0.4453,2939.0,2938.9,3.2078]
[1765866218814,1.932,2939.0,2938.9,3.2078]
[1765866219511,1.4867,2938.7,2938.6,3.2078]
[1765866219706,0.7217,2938.7,2938.6,3.2078]
[1765866220108,1.4867,2938.7,2938.6,3.2078]
[1765866221116,0.7217,2938.7,2938.6,3.2078]
[1765866222314,1.167,2939.0,2938.6,3.2078]
[1765866223616,0.7217,2938.7,2938.6,3.2078]
[1765866224911,1.4867,2938.7,2938.6,3.2078]
[1765866226215,1.167,2939.0,2938.6,3.2078]
[1765866226823,0.7217,2938.7,2938.6,3.2078]
[1765866227820,1.167,2939.0,2938.6,3.2078]
[1765866228222,0.7217,2938.7,2938.6,3.2078]
[1765866228721,0.4453,2938.5,2938.4,0.00884066]
[1765866228924,0.4453,2938.5,2938.4,6.04664066]
[1765866230822,0.4453,2938.5,2938.4,3.21664066]
[1765866230823,1.932,2938.5,2938.4,3.21664066]
[1765866231713,1.932,2938.5,2938.4,0.00884066]
[1765866232520,1.4867,2938.1,2938.0,3.2078]
[1765866233224,1.4867,2938.1,2938.0,44.0078]
[1765866233419,1.4867,2938.1,2938.0,3.2078]
[1765866233626,1.4867,2938.1,2938.0,3.21168857]
[1765866237027,0.4453,2938.5,2938.0,5.96168857]
[1765866237625,0.4453,2938.5,2938.0,3.21168857]
[1765866237828,0.7217,2938.1,2938.0,3.21168857]
[1765866238529,1.4867,2938.1,2938.0,3.21168857]
[1765866242531,0.7217,2938.1,2938.0,5.91168857]
[1765866243425,1.1515,2938.5,2938.0,5.91168857]
[1765866243633,0.4453,2938.5,2938.4,3.2078]
[1765866243825,1.1515,2938.5,2938.4,3.2078]
[1765866244032,0.4453,2938.5,2938.4,3.2078]
[1765866244625,0.4453,2938.5,2938.4,5.8878]
[1765866245735,0.4453,2939.0,2938.4,5.8878]
[1765866245936,1.1515,2939.0,2938.8,3.2078]
[1765866246235,1.8748,2939.0,2938.8,3.2078]
[1765866247027,0.7233,2938.9,2938.8,3.2078]
[1765866247228,1.4295,2938.9,2938.8,3.2078]
[1765866247827,0.4453,2939.0,2938.8,3.2078]
[1765866248639,1.1515,2939.0,2938.8,3.2078]
[1765866249431,1.1515,2939.0,2938.8,5.5278]
[1765866249632,1.8748,2939.0,2938.8,3.2078]
[1765866251435,1.8748,2939.0,2938.8,5.8678]
[1765866251636,3.6066,2939.0,2938.8,3.2078]
[1765866251840,3.6066,2939.0,2938.8,5.7778]
[1765866252540,3.6066,2939.0,2938.8,3.2078]
[1765866255544,3.6066,2939.0,2938.8,5.7578]
[1765866256240,2.1771,2939.0,2938.8,5.7578]
[1765866257340,2.8833,2939.0,2938.8,5.7578]
[1765866257640,2.1771,2939.0,2938.8,5.7578]
[1765866258639,2.1771,2939.0,2938.9,1.52849794]
[1765866258839,2.8833,2939.0,2938.8,3.2078]
[1765866259146,3.6066,2939.0,2938.8,3.2078]
[1765866262749,1.4295,2938.9,2938.8,3.2078]
[1765866263248,0.7062,2938.9,2938.8,3.2078]
[1765866263749,2.8833,2939.0,2938.8,5.5578]
[1765866264449,2.8833,2939.0,2938.8,3.2078]
[1765866264648,2.1771,2939.0,2938.8,3.2078]
[1765866265150,2.1771,2939.0,2938.8,5.6678]
[1765866270051,2.1771,2939.0,2938.8,3.2078]
[1765866270252,2.1771,2939.0,2938.8,5.8878]
[1765866271851,1.7318,2939.0,2938.8,5.8878]
[1765866272353,1.7318,2939.0,2938.9,40.8]
[1765866272553,1.7318,2939.0,2938.9,43.6]
[1765866272752,2.1556,2939.0,2938.9,43.6]
[1765866273847,2.1556,2939.0,2938.9,45.12798191]
[1765866274554,0.4238,2939.0,2938.9,45.12798191]
[1765866275654,1.9526,2939.5,2938.9,45.12798191]
[1765866275953,1.9526,2939.5,2939.4,3.2078]
[1765866276448,1.4899,2939.3,2939.2,1.52798191]
[1765866276649,1.4899,2939.3,2939.2,3.84798191]
[1765866276844,1.4899,2939.3,2939.2,1.52798191]
[1765866277851,1.4899,2939.2,2939.1,3.2078]
[1765866280559,1.9137,2939.0,2938.9,1.52798191]
[1765866280752,1.9137,2939.0,2938.9,7.50578191]
[1765866280953,0.4238,2939.0,2938.9,7.50578191]
[1765866281355,0.4238,2939.0,2938.9,7.50558972]
[1765866284056,1.8577,2939.4,2938.9,7.50558972]
[1765866284259,0.00510856,2939.7,2939.3,6.26337944]
[1765866284468,0.00510856,2939.7,2939.6,4.73558972]
[1765866284757,0.00510856,2939.7,2939.6,48.25558972]
[1765866285151,0.00821297,2939.7,2939.6,48.25558972]
[1765866285356,0.00821297,2939.7,2939.6,64.07358972]
[1765866287552,0.4604,2940.0,2939.6,64.07358972]
[1765866287756,0.4604,2940.0,2939.9,4.73558972]
[1765866287957,0.4604,2940.0,2939.9,7.09558972]
[1765866288567,0.46347309,2940.0,2939.9,7.09558972]
[1765866289656,1.18367309,2940.0,2939.9,7.09558972]
[1765866289858,1.18367309,2940.0,2939.9,22.85158972]
[1765866291264,0.46347309,2940.0,2939.9,22.85158972]
[1765866291671,1.18367309,2940.0,2939.9,22.85158972]
[1765866292367,0.46347309,2940.0,2939.9,7.03558972]
[1765866292564,1.95337309,2940.0,2939.9,23.12158972]
[1765866292765,0.46347309,2940.0,2939.9,23.12158972]
[1765866292965,1.95337309,2940.0,2939.9,23.12158972]
[1765866293268,1.18367309,2940.0,2939.9,23.12158972]
[1765866295464,1.95337309,2940.0,2939.9,23.12158972]
[1765866296761,0.46347309,2940.0,2939.9,23.12158972]
[1765866298377,1.18367309,2940.0,2939.9,23.12158972]
[1765866298975,0.46347309,2940.0,2939.9,23.12158972]
[1765866299177,1.18367309,2940.0,2939.9,23.12158972]
[1765866300079,1.18367309,2940.0,2939.9,7.30558972]
[1765866300279,1.18367309,2940.0,2939.9,23.11958972]
[1765866300572,1.18367309,2940.0,2939.9,4.73558972]
[1765866300776,1.18367309,2940.0,2939.9,22.92958972]
[1765866301170,0.46347309,2940.0,2939.9,7.11558972]
[1765866301371,0.46347309,2940.0,2939.9,22.92958972]
[1765866304071,3.2078,2941.2,2939.9,24.45737944]
[1765866304264,1.4278,2940.6,2940.5,3.2078]
[1765866304469,1.4278,2940.1,2940.0,19.72258972]
[1765866304671,1.4278,2940.1,2940.0,3.2078]
[1765866304879,1.4278,2940.1,2940.0,4.73558972]
[1765866305067,1.43108687,2940.1,2940.0,45.53821636]
[1765866305268,1.43108687,2940.1,2940.0,48.21821636]
[1765866307075,1.43108687,2940.1,2940.0,45.53821636]
[1765866308776,0.71458687,2940.1,2940.0,45.53821636]
[1765866310675,0.00328687,2940.1,2940.0,48.06821636]
[1765866311379,0.71458687,2940.1,2940.0,48.06821636]
[1765866312174,1.43108687,2940.1,2940.0,48.06821636]
[1765866313880,0.71458687,2940.1,2940.0,48.06821636]
[1765866314283,0.00328687,2940.1,2940.0,48.06821636]
[1765866315681,1.43108687,2940.1,2940.0,44.01042664]
[1765866315984,0.4647,2939.5,2939.4,15.81710856]
[1765866316182,0.4647,2939.5,2939.4,21.52490856]
[1765866316382,0.4647,2939.5,2939.4,62.32490856]
[1765866316785,0.4647,2939.5,2939.4,62.32756941]
[1765866316985,0.4647,2939.5,2939.4,63.85535913]
[1765866320588,0.4647,2939.5,2939.4,48.04335913]
[1765866320789,0.4647,2939.5,2939.4,63.85635913]
[1765866322777,0.4647,2939.5,2939.4,48.04335913]
[1765866323192,0.4647,2939.5,2939.4,45.94335913]
[1765866323390,0.4647,2939.5,2939.4,64.13635913]
[1765866323899,1.176,2939.5,2939.4,48.32335913]
[1765866324190,1.8925,2939.5,2939.4,64.13635913]
[1765866324395,1.176,2939.5,2939.4,64.13635913]
[1765866325090,1.8925,2939.5,2939.4,3.21556941]
[1765866326293,1.8925,2939.5,2939.4,5.93556941]
[1765866326491,1.176,2939.5,2939.4,5.93556941]
[1765866326794,1.8925,2939.5,2939.4,5.93556941]
[1765866326995,1.8925,2939.5,2939.4,7.30335913]
[1765866328287,1.8925,2939.5,2939.4,4.74335913]
[1765866329694,1.8925,2939.5,2939.4,3.21556941]
[1765866330692,0.4647,2939.5,2939.4,5.74556941]
[1765866331396,1.176,2939.5,2939.4,5.74556941]
[1765866331792,1.8925,2939.5,2939.4,5.74556941]
[1765866332698,1.8925,2939.5,2939.4,3.21556941]
[1765866335294,0.4647,2939.5,2939.4,6.06556941]
[1765866335792,1.2102,2939.5,2939.4,3.21556941]
[1765866336298,1.9346,2939.5,2939.4,3.21556941]
[1765866339602,1.2102,2939.5,2939.4,3.21556941]
[1765866339803,0.4647,2939.5,2939.4,3.21556941]
[1765866340296,1.2102,2939.5,2939.4,3.21556941]
[1765866340998,1.9346,2939.5,2939.4,44.01556941]
[1765866341901,1.9346,2939.5,2939.4,40.80776941]
[1765866342708,1.2102,2939.5,2939.4,40.80776941]
[1765866343008,1.9346,2939.5,2939.4,40.80776941]
[1765866343195,1.9346,2939.5,2939.4,43.44776941]
[1765866343390,0.4647,2939.5,2939.4,43.44776941]
[1765866343599,0.4647,2939.5,2939.4,45.03549602]
[1765866344806,1.2102,2939.5,2939.4,45.03549602]
[1765866345099,0.4647,2939.5,2939.4,45.03549602]
[1765866352711,0.4647,2940.0,2939.4,46.56322263]
[1765866352908,0.4647,2940.0,2939.9,3.2078]
[1765866353106,0.4647,2940.0,2939.9,5.9978]
[1765866354317,0.4647,2940.0,2939.9,46.7978]
[1765866360517,0.4647,2940.0,2939.9,48.32552661]
[1765866362518,0.00328687,2940.1,2939.9,48.32552661]
[1765866362812,2.1658,2940.2,2939.9,48.32552661]
[1765866363917,2.16850505,2940.2,2939.9,48.32552661]
[1765866367225,0.4647,2940.5,2940.1,1.52772661]
[1765866367420,0.4647,2940.5,2940.4,4.73552661]
[1765866367611,0.4647,2940.5,2940.4,7.17552661]
[1765866367928,0.4647,2940.5,2940.4,47.97552661]
[1765866368318,0.46752338,2940.5,2940.4,47.97552661]
[1765866372123,1.96742338,2940.5,2940.4,44.0078]
[1765866372324,1.96742338,2940.5,2940.4,62.3168]
[1765866372726,1.96742338,2940.5,2940.4,63.84452661]
[1765866372918,1.20412338,2940.5,2940.4,63.84452661]
[1765866373119,0.46752338,2940.5,2940.4,63.84452661]
[1765866373618,1.96742338,2940.5,2940.4,63.66452661]
[1765866374427,0.46752338,2940.5,2940.4,63.66452661]
[1765866374726,0.46752338,2940.5,2940.4,62.1368]
[1765866374921,0.46752338,2940.5,2940.4,63.90452661]
[1765866379031,1.96742338,2940.5,2940.4,63.90352661]
[1765866379728,0.46752338,2940.5,2940.4,48.09552661]
[1765866380027,0.46752338,2940.5,2940.4,63.90352661]
[1765866382130,0.00282338,2940.5,2940.4,63.90352661]
[1765866382335,0.44312338,2940.5,2940.4,63.90352661]
[1765866384536,0.44312338,2940.5,2940.4,60.69572661]
[1765866384831,0.44312338,2940.5,2940.4,63.90352661]
[1765866387632,0.00282338,2940.5,2940.4,63.90352661]
[1765866388034,0.44312338,2940.5,2940.4,63.90352661]
[1765866388523,0.44312338,2940.5,2940.4,62.3758]
[1765866388729,1.17972338,2940.5,2940.4,62.3758]
[1765866388938,0.44312338,2940.5,2940.4,62.3758]
[1765866390138,0.44312338,2940.5,2940.4,46.5678]
[1765866390336,0.44312338,2940.5,2940.4,62.3738]
[1765866390837,1.17972338,2940.5,2940.4,46.5678]
[1765866391036,1.17972338,2940.5,2940.4,63.90152661]
[1765866391232,1.94302338,2940.5,2940.4,44.0078]
[1765866391539,1.94302338,2940.5,2940.4,62.5938]
[1765866392431,1.94302338,2940.5,2940.4,40.8]
[1765866392746,1.4532,2940.2,2940.1,19.0138]
[1765866392927,1.4532,2940.2,2940.1,21.7438]
[1765866393133,1.4532,2940.2,2940.1,62.5438]
[1765866393634,1.4532,2940.2,2940.1,59.8138]
[1765866393840,1.4532,2940.2,2940.1,62.5638]
[1765866395034,1.4532,2940.2,2940.1,5.9578]
[1765866395340,1.4532,2940.2,2940.1,21.7648]
[1765866396739,1.4532,2940.2,2940.1,19.0148]
[1765866396940,1.4532,2940.2,2940.1,21.6148]
[1765866397134,1.4532,2940.2,2940.1,19.0148]
[1765866397333,1.4532,2940.2,2940.1,2.63]
[1765866397535,1.9151,2940.0,2939.9,56.607]
[1765866397737,1.9151,2940.0,2939.9,59.137]
[1765866398031,0.0036,2940.9,2940.3,0.17008]
[1765866398232,0.0036,2940.9,2940.8,1.52772661]
[1765866398440,3.2078,2941.8,2940.8,21.55345322]
[1765866398637,0.4246,2941.5,2941.4,1.52772661]
[1765866398844,1.9151,2941.5,2941.4,20.13772661]
[1765866399142,1.91790314,2941.5,2941.3,3.2078]
[1765866399337,1.91790314,2941.5,2941.4,55.081]
[1765866401544,0.42740314,2941.5,2941.4,56.60872661]
[1765866401940,0.42740314,2941.5,2941.4,58.95872661]
[1765866402139,0.42740314,2941.5,2941.4,57.431]
[1765866402339,0.42740314,2941.5,2941.4,59.05872661]
[1765866404044,1.19730314,2941.5,2941.4,55.081]
[1765866404342,1.19730314,2941.5,2941.0,0.00509979]
[1765866404343,1.4905,2941.1,2941.0,0.00509979]
[1765866404846,1.4905,2941.1,2941.0,40.80509979]
[1765866405347,1.4905,2941.1,2941.0,42.34133006]
[1765866405538,1.4905,2941.1,2941.0,42.33133006]
[1765866406844,1.4905,2941.1,2941.0,42.40133006]
[1765866407046,1.4905,2941.1,2941.0,48.09913006]
[1765866407244,0.42740314,2941.5,2941.0,48.09913006]
[1765866407453,0.42740314,2941.5,2941.4,1.52623027]
[1765866407750,0.42740314,2941.5,2941.4,4.33623027]
[1765866407751,1.19730314,2941.5,2941.4,4.33623027]
[1765866407949,1.91790314,2941.5,2941.4,4.33623027]
[1765866408655,1.91790314,2941.5,2941.4,1.52623027]
[1765866408858,1.19730314,2941.5,2941.4,1.52623027]
[1765866409153,0.42740314,2941.5,2941.4,4.18623027]
[1765866410360,0.42740314,2941.5,2941.4,4.18567091]
[1765866417066,0.00280314,2941.5,2941.4,4.18567091]
[1765866420772,0.00853536,2941.9,2941.4,4.18567091]
[1765866421073,0.00853536,2941.9,2941.8,1.52567091]
[1765866421369,0.00853536,2941.9,2941.8,4.00567091]
[1765866421770,0.01235564,2941.9,2941.8,4.00844654]
[1765866422679,0.01235564,2941.9,2941.8,3.98844654]
[1765866424274,0.01235564,2941.9,2941.8,44.78844654]
[1765866424470,0.01235564,2941.9,2941.8,46.31411745]
[1765866424670,0.01235564,2941.9,2941.8,44.78844654]
[1765866425972,0.01235564,2941.9,2941.8,46.31411745]
[1765866426167,0.4246,2942.5,2941.8,46.48410745]
[1765866426372,1.1411,2942.5,2942.4,1.52567091]
[1765866426678,0.4246,2942.5,2942.4,19.80667091]
[1765866427173,0.00953488,2942.8,2942.4,19.80667091]
[1765866427370,1.48413488,2942.8,2942.7,1.52567091]
[1765866427570,1.48413488,2942.8,2942.5,3.2078]
[1765866427772,1.4746,2942.6,2942.5,5.6878]
[1765866428075,0.7165,2942.6,2942.5,5.6878]
[1765866428273,0.71892955,2942.6,2942.5,5.6878]
[1765866428476,0.00242955,2942.6,2942.5,5.6878]
[1765866428668,0.4246,2943.0,2942.5,5.6878]
[1765866428870,3.2078,2943.3,2942.9,3.05134182]
[1765866429174,4.6824,2943.3,2943.2,1.52567091]
[1765866429477,4.6824,2943.3,2943.0,40.8]
[1765866429673,4.68591639,2943.3,2943.2,1.52567091]
[1765866429979,4.68591639,2943.3,2943.2,4.02567091]
[1765866430169,4.68591639,2943.3,2943.2,1.52567091]
[1765866431479,4.68591639,2943.3,2943.2,3.88567091]
[1765866431675,3.21131639,2943.3,2943.2,3.88567091]
[1765866433075,0.00351639,2943.3,2943.2,3.88567091]
[1765866434473,0.00351639,2943.3,2943.2,1.52567091]
[1765866434678,0.00351639,2943.3,2943.2,4.02567091]
[1765866434876,1.47811639,2943.3,2943.1,3.2078]
[1765866435079,1.47811639,2943.3,2943.2,1.52567091]
[1765866435383,1.47811639,2943.3,2943.2,4.23567091]
[1765866436678,1.47811639,2943.3,2943.0,56.612]
[1765866436878,1.4746,2943.1,2943.0,40.8]
[1765866437080,1.4746,2942.9,2942.8,0.00509979]
[1765866438085,4.6824,2942.9,2942.8,0.00509979]
[1765866438285,1.4746,2942.9,2942.8,1.5307707]
[1765866439178,1.4746,2942.9,2942.8,0.00509979]
[1765866439379,3.6476,2943.0,2942.2,3.2078]
[1765866439380,1.4746,2942.3,2942.2,3.2078]
[1765866439572,1.4746,2942.3,2942.2,5.6578]
[1765866439783,1.4746,2942.3,2942.2,7.03347091]
[1765866439979,1.4746,2942.3,2942.2,48.31347091]
[1765866441986,1.4746,2942.3,2942.2,44.0078]
[1765866442188,1.4746,2942.3,2942.2,48.24347091]
[1765866443291,1.4746,2942.3,2942.2,45.53347091]
[1765866443494,1.4746,2942.3,2942.2,40.8]
[1765866443792,1.4746,2942.1,2942.0,0.00509979]
[1765866444290,4.6824,2942.1,2942.0,0.00509979]
[1765866444480,1.4746,2941.7,2941.6,3.2078]
[1765866445293,1.4746,2941.4,2941.3,3.2078]
[1765866445597,1.1563,2941.5,2941.3,7.32605356]
[1765866445894,0.00509979,2941.6,2941.3,7.32605356]
[1765866446096,0.00509979,2941.6,2941.5,1.52567091]
[1765866446592,0.00509979,2941.6,2941.5,4.31567091]
[1765866446895,0.00509979,2941.6,2941.5,14.74067091]
[1765866447099,3.9243,2942.4,2941.5,14.74067091]
[1765866447295,4.6824,2942.4,2942.3,1.52567091]
[1765866447595,4.6824,2942.4,2941.8,8.027]
[1765866447596,1.1563,2942.0,2941.8,8.027]
[1765866447791,0.4398,2942.0,2941.8,10.607]
[1765866448195,0.4398,2942.0,2941.8,13.065]
[1765866448591,0.4398,2942.0,2941.8,10.485]
[1765866448789,0.4398,2942.0,2941.9,1.52567091]
[1765866448990,0.4398,2942.0,2941.9,4.34567091]
[1765866449194,0.00507057,2942.2,2941.9,4.34567091]
[1765866449496,0.00507057,2942.2,2942.1,1.52567091]
[1765866449686,0.00507057,2942.2,2942.1,4.17567091]
[1765866450400,0.00507057,2942.2,2942.1,4.34567091]
[1765866450699,0.00507057,2942.2,2942.1,45.14567091]
[1765866451598,0.00507057,2942.2,2942.1,42.32567091]
[1765866451798,0.72157057,2942.2,2942.1,45.17567091]
[1765866452099,1.47967057,2942.2,2942.1,45.17567091]
[1765866452498,0.72157057,2942.2,2942.1,45.17567091]
[1765866453397,1.48467057,2942.2,2942.1,42.32567091]
[1765866458907,1.48467057,2942.2,2942.1,40.8]
[1765866459209,1.48467057,2942.2,2942.1,42.32567091]
[1765866461314,0.00507057,2942.2,2942.1,45.11567091]
[1765866462515,0.00507057,2942.2,2942.1,44.85567091]
[1765866462710,0.00507057,2942.2,2942.1,46.38134182]
[1765866462923,0.00507057,2942.2,2942.1,49.58914182]
[1765866463220,0.00507057,2942.2,2942.1,65.40514182]
[1765866466623,0.18548391,2944.1,2942.8,0.16994]
[1765866466817,0.4473,2943.5,2943.2,4.73347091]
[1765866467016,0.4473,2943.5,2943.2,23.36147091]
[1765866467217,0.4473,2943.5,2943.2,7.53347091]
[1765866467416,0.75081639,2943.3,2943.2,57.215]
[1765866467620,0.00351639,2943.3,2943.2,57.215]
[1765866469226,0.00351639,2943.3,2943.2,60.4228]
[1765866470123,0.00351639,2943.3,2943.2,46.8078]
[1765866470326,0.00351639,2943.3,2943.2,62.6338]
[1765866472526,0.00351639,2943.3,2943.2,62.3438]
[1765866472726,1.51391639,2943.3,2943.2,44.0078]
[1765866473028,1.51391639,2943.3,2943.2,59.8318]
[1765866473225,0.75081639,2943.3,2943.2,59.8318]
[1765866474032,0.75081639,2943.3,2943.2,59.8308]
[1765866474421,0.75081639,2943.3,2943.2,59.8298]
[1765866474623,1.51391639,2943.3,2943.2,56.621]
[1765866475223,0.00351639,2943.3,2943.2,58.971]
[1765866475421,0.00351639,2943.3,2943.2,56.622]
[1765866475738,0.00351639,2943.3,2943.2,59.402]
[1765866475916,0.00351639,2943.3,2943.2,43.51]
[1765866476123,0.75081639,2943.3,2943.2,59.332]
[1765866477323,0.00351639,2943.3,2943.2,59.332]
[1765866477628,0.00351639,2943.3,2943.2,56.622]
[1765866478023,0.00351639,2943.3,2943.2,62.1998]
[1765866478628,0.00351639,2943.3,2943.2,62.1978]
[1765866479422,0.00351639,2943.3,2943.2,63.72135548]
[1765866479821,0.4398,2944.0,2943.2,63.89126548]
[1765866480130,0.4398,2944.0,2943.8,1.52355548]
[1765866480332,0.4398,2944.0,2943.9,15.826]
[1765866480632,0.18548391,2944.1,2943.9,15.826]
[1765866480823,1.1946,2944.0,2943.9,15.82960384]
[1765866481130,1.9577,2944.0,2943.9,0.00360384]
[1765866481629,0.18837348,2944.1,2943.9,2.35360384]
[1765866481825,0.18837348,2944.1,2943.9,3.87715932]
[1765866482321,0.18837348,2944.1,2944.0,46.8]
[1765866482526,1.2133,2945.0,2944.2,0.16985]
[1765866482726,1.2133,2945.0,2944.7,4.73135548]